[Event "Schack-SM 2022: Mastarklassen"]
[Site "Fyrishov, Idrottsgatan 2, Uppsala, Sweden"]
[Date "2022.07.03"]
[Round "2.7"]
[White "Mardell, Jimmy"]
[Black "Tiger-Norqvist, Axel"]
[Result "0-1"]
[TimeControl "90 minutes for 40 moves + 30 minutes for the rest of the game + 30 seconds per move from move one."]
[WhiteFideId "1705610"]
[BlackFideId "1716816"]
[WhiteElo "2161"]
[BlackElo "2239"]

1. d4 {[%clk 01:30:57]} {[%emt 00:00:02]} Nf6 {[%clk 01:30:54]} {[%emt
00:00:06]} 2. c4 {[%clk 01:31:22]} {[%emt 00:00:06]} g6 {[%clk 01:31:18]}
{[%emt 00:00:06]} 3. f3 {[%clk 01:31:46]} {[%emt 00:00:07]} Bg7 {[%clk
01:31:32]} {[%emt 00:00:16]} 4. e4 {[%clk 01:32:11]} {[%emt 00:00:04]} O-O
{[%clk 01:31:53]} {[%emt 00:00:09]} 5. Nc3 {[%clk 01:32:35]} {[%emt 00:00:06]}
d6 {[%clk 01:32:16]} {[%emt 00:00:07]} 6. Be3 {[%clk 01:32:57]} {[%emt
00:00:08]} c5 {[%clk 01:32:37]} {[%emt 00:00:10]} 7. Nge2 {[%clk 01:33:13]}
{[%emt 00:00:14]} Nc6 {[%clk 01:32:54]} {[%emt 00:00:14]} 8. d5 {[%clk
01:33:18]} {[%emt 00:00:25]} Ne5 {[%clk 01:33:15]} {[%emt 00:00:09]} 9. Ng3
{[%clk 01:33:39]} {[%emt 00:00:08]} h5 {[%emt 00:00:14]} 10. Be2 {[%clk
01:33:51]} {[%emt 00:00:14]} h4 {[%clk 01:33:56]} {[%emt 00:00:09]} 11. Nf1
{[%clk 01:34:03]} {[%emt 00:00:18]} e6 {[%clk 01:34:18]} {[%emt 00:00:08]} 12.
f4 {[%clk 01:32:32]} {[%emt 00:02:01]} Nxc4 {[%clk 01:34:33]} {[%emt 00:00:16]}
13. Bxc4 {[%clk 01:32:56]} {[%emt 00:00:06]} b5 {[%clk 01:34:59]} {[%emt
00:00:04]} 14. Bxb5 {[%clk 01:33:21]} {[%emt 00:00:05]} exd5 {[%clk 01:35:20]}
{[%emt 00:00:08]} 15. e5 {[%clk 01:33:42]} {[%emt 00:00:09]} dxe5 {[%clk
01:35:39]} {[%emt 00:00:11]} 16. fxe5 {[%clk 01:34:03]} {[%emt 00:00:09]} Bg4
{[%clk 01:35:33]} {[%emt 00:00:36]} 17. exf6 {[%clk 01:34:28]} {[%emt
00:00:06]} Bxd1 {[%clk 01:35:55]} {[%emt 00:00:08]} 18. fxg7 {[%clk 01:34:55]}
{[%emt 00:00:03]} Kxg7 {[%clk 01:36:19]} {[%emt 00:00:06]} 19. Bxc5 {[%clk
01:35:17]} {[%emt 00:00:07]} Bh5 {[%clk 01:36:33]} {[%emt 00:00:16]} 20. Bd4+
{[%clk 01:35:36]} {[%emt 00:00:12]} Kh6 {[%clk 01:36:09]} {[%emt 00:00:55]} 21.
Ne3 {[%clk 01:35:49]} {[%emt 00:00:16]} f5 {[%clk 01:34:25]} {[%emt 00:02:13]}
22. O-O {[%clk 01:34:12]} {[%emt 00:02:08]} f4 {[%clk 00:57:25]} {[%emt
00:37:31]} 23. Nexd5 {[%clk 01:32:32]} {[%emt 00:02:09]} Rb8 {[%clk 00:57:12]}
{[%emt 00:00:43]} 24. a4 {[%clk 01:30:32]} {[%emt 00:02:30]} a6 {[%clk
00:57:06]} {[%emt 00:00:36]} 25. Rae1 {[%clk 01:28:43]} {[%emt 00:02:19]} axb5
{[%clk 00:43:07]} {[%emt 00:14:28]} 26. Re7 {[%clk 01:28:51]} {[%emt 00:00:22]}
g5 {[%clk 00:43:07]} {[%emt 00:00:31]} 27. Bg7+ {[%clk 01:29:07]} {[%emt
00:00:14]} Kg6 {[%clk 00:43:31]} {[%emt 00:00:06]} 28. Bxf8 {[%clk 01:29:33]}
{[%emt 00:00:04]} Qxf8 {[%clk 00:43:36]} {[%emt 00:00:25]} 29. Rfe1 {[%clk
01:26:39]} {[%emt 00:03:24]} Bg4 {[%clk 00:42:13]} {[%emt 00:01:54]} 30. h3
{[%clk 01:10:11]} {[%emt 00:16:57]} Bf5 {[%clk 00:41:37]} {[%emt 00:01:06]} 31.
Nxb5 {[%clk 00:52:42]} {[%emt 00:18:00]} f3 {[%clk 00:37:46]} {[%emt 00:04:21]}
32. gxf3 {[%clk 00:47:14]} {[%emt 00:05:57]} Bxh3 {[%clk 00:32:38]} {[%emt
00:05:38]} 33. R1e3 {[%clk 00:09:47]} {[%emt 00:37:58]} Qf5 {[%clk 00:14:12]}
{[%emt 00:18:56]} 34. R7e5 {[%clk 00:09:39]} {[%emt 00:00:37]} Qb1+ {[%clk
00:13:47]} {[%emt 00:00:55]} 35. Re1 {[%clk 00:03:51]} {[%emt 00:06:18]} Qxb2
{[%clk 00:10:42]} {[%emt 00:03:35]} 36. R5e2 {[%clk 00:04:13]} {[%emt
00:00:07]} Rxb5 {[%clk 00:03:53]} {[%emt 00:07:20]} 37. axb5 {[%clk 00:02:08]}
{[%emt 00:02:35]} Qxb5 {[%clk 00:04:17]} {[%emt 00:00:05]} 38. Nc3 {[%clk
00:01:09]} {[%emt 00:01:29]} Qb8 {[%clk 00:02:34]} {[%emt 00:02:13]} 39. Ne4
{[%clk 00:01:10]} {[%emt 00:00:28]} Bf5 {[%clk 00:02:34]} {[%emt 00:00:30]} 40.
Rg2 {[%clk 00:00:40]} {[%emt 00:01:00]} g4 {[%clk 00:00:52]} {[%emt 00:02:12]}
41. Rxg4+ {[%clk 00:24:41]} {[%emt 00:06:29]} Bxg4 {[%clk 00:31:11]} {[%emt
00:00:11]} 42. fxg4 {[%clk 00:25:07]} {[%emt 00:00:04]} Qf4 {[%clk 00:29:34]}
{[%emt 00:02:07]} 43. Nf2 {[%clk 00:20:31]} {[%emt 00:05:06]} h3 {[%clk
00:27:49]} {[%emt 00:02:15]} 44. Kf1 {[%clk 00:11:40]} {[%emt 00:09:21]} Qc4+
{[%clk 00:22:14]} {[%emt 00:06:06]} 45. Kg1 {[%clk 00:11:04]} {[%emt 00:01:05]}
Qd4 {[%clk 00:21:51]} {[%emt 00:00:52]} 46. Kf1 {[%clk 00:07:24]} {[%emt
00:04:11]} Kg5 {[%clk 00:13:52]} {[%emt 00:08:30]} 47. Nxh3+ {[%clk 00:06:59]}
{[%emt 00:00:53]} Kh4 {[%clk 00:13:08]} 48. Nf2 {[%clk 00:06:59]} Kg3 {[%clk
00:13:08]} 49. Re2 {[%clk 00:06:59]} Qa1+ {[%clk 00:10:26]} {[%emt 00:07:38]}
50. Re1 {[%clk 00:05:44]} Qa6+ {[%clk 00:10:47]} {[%emt 00:00:13]} 51. Kg1
{[%clk 00:06:04]} Qb6 {[%clk 00:11:00]} {[%emt 00:00:27]} 52. Rf1 {[%clk
00:05:50]} Kf3 {[%clk 00:10:13]} {[%emt 00:02:01]} 53. Kh1 {[%clk 00:03:51]}
Qh6+ {[%clk 00:08:39]} {[%emt 00:04:33]} 54. Kg1 {[%clk 00:04:15]} Qe3 {[%clk
00:08:58]} {[%emt 00:00:18]} 55. Kh2 {[%clk 00:01:31]} Qf4+ {[%clk 00:07:46]}
{[%emt 00:04:56]} 56. Kg1 {[%clk 00:01:54]} Qg3+ {[%clk 00:08:11]} {[%emt
00:00:11]} 0-1

[Event "Schack-SM 2022: Mastarklassen"]
[Site "Fyrishov, Idrottsgatan 2, Uppsala, Sweden"]
[Date "2022.07.03"]
[Round "2.8"]
[White "Pettersson, Tobias"]
[Black "Johansson, Thomas"]
[Result "0-1"]
[TimeControl "90 minutes for 40 moves + 30 minutes for the rest of the game + 30 seconds per move from move one."]
[WhiteFideId "1705962"]
[BlackFideId "1708244"]
[WhiteElo "2027"]
[BlackElo "2231"]

1. d4 {[%emt 00:00:05]} Nf6 {[%emt 00:06:31]} 2. Nf3 {[%clk 01:31:03]} {[%emt
00:00:18]} e6 {[%clk 01:24:03]} {[%emt 00:00:58]} 3. Bg5 {[%clk 01:30:32]}
{[%emt 00:01:01]} Be7 {[%clk 01:24:05]} {[%emt 00:00:28]} 4. Nbd2 {[%clk
01:28:19]} {[%emt 00:02:43]} d5 {[%clk 01:23:39]} {[%emt 00:00:56]} 5. e3
{[%clk 01:28:33]} {[%emt 00:00:16]} Nbd7 {[%clk 01:18:26]} {[%emt 00:05:42]} 6.
Bd3 {[%clk 01:28:11]} {[%emt 00:00:52]} b6 {[%clk 01:17:38]} {[%emt 00:01:19]}
7. O-O {[%clk 01:24:08]} {[%emt 00:04:33]} Bb7 {[%clk 01:17:51]} {[%emt
00:00:17]} 8. c3 {[%clk 01:22:09]} {[%emt 00:02:30]} Ne4 {[%clk 01:12:15]}
{[%emt 00:06:06]} 9. Bxe7 {[%clk 01:22:15]} {[%emt 00:00:24]} Qxe7 {[%clk
01:12:39]} {[%emt 00:00:06]} 10. Bxe4 {[%clk 01:22:11]} {[%emt 00:00:34]} dxe4
{[%clk 01:13:00]} {[%emt 00:00:09]} 11. Ne1 {[%clk 01:22:03]} {[%emt 00:00:38]}
O-O {[%clk 01:12:38]} {[%emt 00:00:52]} 12. Qc2 {[%clk 01:12:47]} {[%emt
00:09:46]} e5 {[%clk 01:11:15]} {[%emt 00:01:53]} 13. Nc4 {[%clk 00:58:08]}
{[%emt 00:15:08]} Qe6 {[%clk 01:08:24]} {[%emt 00:03:20]} 14. b3 {[%clk
00:56:15]} {[%emt 00:02:24]} c5 {[%emt 00:02:56]} 15. dxe5 {[%clk 00:49:45]}
{[%emt 00:06:57]} Nxe5 {[%clk 01:06:20]} {[%emt 00:00:11]} 16. Nxe5 {[%clk
00:50:00]} {[%emt 00:00:16]} Qxe5 {[%clk 01:06:43]} {[%emt 00:00:07]} 17. Rd1
{[%clk 00:42:20]} {[%emt 00:08:08]} Rad8 {[%clk 00:51:53]} {[%emt 00:15:21]} 18.
c4 {[%clk 00:31:21]} {[%emt 00:11:30]} Bc8 {[%clk 00:39:29]} {[%emt 00:12:55]}
19. Rxd8 {[%clk 00:22:04]} {[%emt 00:09:46]} Rxd8 {[%clk 00:39:52]} {[%emt
00:00:07]} 20. h3 {[%clk 00:19:07]} {[%emt 00:03:26]} Bf5 {[%clk 00:34:14]}
{[%emt 00:06:08]} 21. Kh1 {[%clk 00:10:27]} {[%emt 00:09:10]} Bg6 {[%clk
00:31:31]} {[%emt 00:03:12]} 22. Kg1 {[%clk 00:05:56]} {[%emt 00:05:02]} h6
{[%clk 00:25:52]} {[%emt 00:06:09]} 23. g3 {[%clk 00:05:19]} {[%emt 00:01:06]}
Qe6 {[%clk 00:17:15]} {[%emt 00:09:07]} 24. Kh2 {[%clk 00:04:44]} {[%emt
00:01:05]} Bh5 {[%clk 00:14:54]} {[%emt 00:02:51]} 25. g4 {[%clk 00:03:59]}
{[%emt 00:01:15]} Qe5+ {[%clk 00:14:55]} {[%emt 00:00:29]} 26. Kg1 {[%clk
00:04:11]} {[%emt 00:00:18]} Bg6 {[%clk 00:15:20]} {[%emt 00:00:06]} 27. Ng2
{[%clk 00:04:33]} {[%emt 00:00:07]} h5 {[%clk 00:07:02]} {[%emt 00:08:48]} 28.
Rd1 {[%clk 00:04:18]} {[%emt 00:00:44]} Rd6 {[%clk 00:06:31]} {[%emt 00:01:02]}
29. Nf4 {[%clk 00:04:20]} {[%emt 00:00:27]} hxg4 {[%clk 00:06:38]} {[%emt
00:00:23]} 30. hxg4 {[%clk 00:04:22]} {[%emt 00:00:28]} Bh7 {[%clk 00:05:51]}
{[%emt 00:01:18]} 31. Rd5 {[%clk 00:04:01]} {[%emt 00:00:50]} Rxd5 {[%clk
00:06:07]} {[%emt 00:00:15]} 32. cxd5 {[%clk 00:03:16]} {[%emt 00:01:15]} g5
{[%clk 00:06:16]} {[%emt 00:00:20]} 33. Nh5 {[%clk 00:02:59]} {[%emt 00:00:47]}
Bg6 {[%clk 00:06:34]} {[%emt 00:00:11]} 34. Qd1 {[%clk 00:02:40]} {[%emt
00:00:50]} Kf8 {[%clk 00:06:47]} {[%emt 00:00:17]} 35. d6 {[%clk 00:02:06]}
{[%emt 00:01:04]} Ke8 {[%clk 00:07:06]} {[%emt 00:00:10]} 36. d7+ {[%clk
00:01:44]} {[%emt 00:00:53]} Kd8 {[%clk 00:07:30]} {[%emt 00:00:06]} 37. Qd2
{[%clk 00:00:59]} {[%emt 00:01:14]} f5 {[%clk 00:06:45]} {[%emt 00:01:15]} 38.
Ng3 {[%clk 00:01:06]} {[%emt 00:00:23]} f4 {[%clk 00:07:01]} {[%emt 00:00:15]}
39. exf4 {[%clk 00:01:22]} {[%emt 00:00:14]} gxf4 {[%clk 00:07:23]} {[%emt
00:00:07]} 40. Ne2 {[%clk 00:01:42]} {[%emt 00:00:09]} e3 {[%clk 00:03:09]}
{[%emt 00:04:44]} 41. Qc3 {[%clk 00:18:20]} {[%emt 00:13:52]} Qg5 {[%clk
00:24:42]} {[%emt 00:08:56]} 42. f3 {[%clk 00:17:42]} {[%emt 00:01:09]} Be4
{[%clk 00:19:53]} {[%emt 00:05:19]} 43. Qh8+ {[%clk 00:05:01]} {[%emt
00:13:11]} Kxd7 {[%clk 00:20:05]} {[%emt 00:00:19]} 44. Qb8 {[%clk 00:05:20]}
{[%emt 00:00:11]} Bxf3 {[%clk 00:20:15]} {[%emt 00:00:19]} 45. Qxa7+ {[%clk
00:05:39]} {[%emt 00:00:11]} Kc8 {[%clk 00:20:33]} {[%emt 00:00:11]} 0-1

[Event "Schack-SM 2022: Mastarklassen"]
[Site "Fyrishov, Idrottsgatan 2, Uppsala, Sweden"]
[Date "2022.07.03"]
[Round "2.9"]
[White "Landgren, Andreas"]
[Black "Olsson, Svante"]
[Result "1-0"]
[TimeControl "90 minutes for 40 moves + 30 minutes for the rest of the game + 30 seconds per move from move one."]
[WhiteTitle "FM"]
[WhiteFideId "1704311"]
[BlackFideId "1707353"]
[WhiteElo "2224"]
[BlackElo "2156"]

1. e4 {[%clk 01:30:59]} c5 {[%clk 01:30:50]} {[%emt 00:00:11]} 2. Nf3 {[%clk
01:31:22]} {[%emt 00:00:06]} d6 {[%clk 01:31:11]} {[%emt 00:00:09]} 3. d4
{[%clk 01:31:47]} {[%emt 00:00:05]} cxd4 {[%clk 01:31:34]} {[%emt 00:00:07]} 4.
Nxd4 {[%clk 01:32:12]} {[%emt 00:00:04]} Nf6 {[%clk 01:31:52]} {[%emt
00:00:12]} 5. Nc3 {[%clk 01:32:36]} {[%emt 00:00:06]} g6 {[%clk 01:32:09]}
{[%emt 00:00:13]} 6. Be3 {[%clk 01:33:00]} {[%emt 00:00:06]} Bg7 {[%clk
01:32:31]} {[%emt 00:00:08]} 7. f3 {[%clk 01:33:24]} {[%emt 00:00:06]} O-O
{[%clk 01:32:43]} {[%emt 00:00:19]} 8. Qd2 {[%clk 01:33:49]} {[%emt 00:00:04]}
Nc6 {[%clk 01:32:56]} {[%emt 00:00:17]} 9. O-O-O {[%clk 01:34:08]} {[%emt
00:00:11]} Bd7 {[%clk 01:33:06]} {[%emt 00:00:21]} 10. Kb1 {[%clk 01:26:57]}
{[%emt 00:07:41]} Rc8 {[%clk 01:33:00]} {[%emt 00:00:36]} 11. g4 {[%clk
01:22:40]} {[%emt 00:04:46]} Ne5 {[%clk 01:32:45]} {[%emt 00:00:46]} 12. h4
{[%clk 01:03:50]} {[%emt 00:19:20]} h5 {[%clk 01:26:36]} {[%emt 00:06:38]} 13.
Nd5 {[%clk 01:00:54]} {[%emt 00:03:27]} hxg4 {[%clk 01:22:49]} {[%emt
00:04:16]} 14. Nxf6+ {[%clk 00:47:18]} {[%emt 00:14:06]} Bxf6 {[%clk 01:21:59]}
{[%emt 00:01:19]} 15. f4 {[%clk 00:46:22]} {[%emt 00:01:27]} Nc4 {[%clk
01:17:23]} {[%emt 00:05:06]} 16. Bxc4 {[%clk 00:46:45]} {[%emt 00:00:08]} Rxc4
{[%clk 01:17:45]} {[%emt 00:00:08]} 17. h5 {[%clk 00:46:38]} {[%emt 00:00:37]}
e5 {[%clk 01:15:12]} {[%emt 00:03:03]} 18. Nb3 {[%clk 00:40:12]} {[%emt
00:06:56]} gxh5 {[%clk 01:02:56]} {[%emt 00:12:45]} 19. Rxh5 {[%clk 00:33:32]}
{[%emt 00:07:10]} Rxe4 {[%clk 01:00:37]} {[%emt 00:02:49]} 20. f5 {[%clk
00:32:44]} {[%emt 00:01:18]} Bc6 {[%clk 00:50:39]} {[%emt 00:10:29]} 21. Bxa7
{[%clk 00:23:23]} {[%emt 00:09:51]} Rf4 {[%clk 00:43:53]} {[%emt 00:07:15]} 22.
Be3 {[%clk 00:20:18]} {[%emt 00:03:35]} Re4 {[%clk 00:43:23]} {[%emt 00:01:01]}
23. Bb6 {[%clk 00:13:12]} {[%emt 00:07:36]} Qe7 {[%clk 00:41:59]} {[%emt
00:01:54]} 24. Bc7 {[%clk 00:13:28]} {[%emt 00:00:14]} Rd8 {[%clk 00:37:00]}
{[%emt 00:05:28]} 25. Bxd8 {[%clk 00:12:07]} {[%emt 00:01:52]} Qxd8 {[%clk
00:37:28]} {[%emt 00:00:02]} 26. a3 {[%clk 00:06:55]} {[%emt 00:05:43]} Rf4
{[%clk 00:35:17]} {[%emt 00:02:40]} 27. Nc1 {[%clk 00:05:35]} {[%emt 00:01:50]}
Bf3 {[%clk 00:35:28]} {[%emt 00:00:19]} 28. Rg1 {[%clk 00:05:26]} {[%emt
00:00:39]} Bg5 {[%clk 00:34:58]} {[%emt 00:01:00]} 29. Qh2 {[%clk 00:03:35]}
{[%emt 00:02:22]} Qf6 {[%clk 00:35:12]} {[%emt 00:00:15]} 30. Nd3 {[%clk
00:02:50]} {[%emt 00:01:15]} Rxf5 {[%clk 00:35:20]} {[%emt 00:00:22]} 31. Ne1
{[%clk 00:03:17]} {[%emt 00:00:04]} g3 {[%clk 00:35:13]} {[%emt 00:00:34]} 32.
Rxg5+ {[%clk 00:01:31]} {[%emt 00:02:18]} Rxg5 {[%clk 00:35:29]} {[%emt
00:00:14]} 33. Rxg3 {[%clk 00:01:56]} {[%emt 00:00:05]} Bd5 {[%clk 00:34:19]}
{[%emt 00:01:40]} 34. Qh4 {[%clk 00:02:03]} {[%emt 00:00:23]} 1-0

[Event "Schack-SM 2022: Mastarklassen"]
[Site "Fyrishov, Idrottsgatan 2, Uppsala, Sweden"]
[Date "2022.07.03"]
[Round "2.1"]
[White "Johnson, Daniel"]
[Black "Crevatin, Leo"]
[Result "1/2-1/2"]
[TimeControl "90 minutes for 40 moves + 30 minutes for the rest of the game + 30 seconds per move from move one."]
[BlackTitle "CM"]
[WhiteFideId "1721283"]
[BlackFideId "1726307"]
[WhiteElo "2191"]
[BlackElo "2259"]

1. d4 {[%clk 01:25:36]} {[%emt 00:05:18]} Nf6 {[%clk 01:30:58]} {[%emt
00:00:08]} 2. c4 {[%clk 01:25:58]} {[%emt 00:00:08]} e6 {[%clk 01:31:26]}
{[%emt 00:00:02]} 3. Nc3 {[%clk 01:26:21]} {[%emt 00:00:07]} Bb4 {[%clk
01:31:52]} {[%emt 00:00:04]} 4. Qc2 {[%clk 01:26:27]} {[%emt 00:00:24]} O-O
{[%clk 01:32:17]} {[%emt 00:00:05]} 5. Nf3 {[%clk 01:26:38]} {[%emt 00:00:19]}
d5 {[%clk 01:32:42]} {[%emt 00:00:06]} 6. Bg5 {[%clk 01:26:30]} {[%emt
00:00:37]} c5 {[%clk 01:33:07]} {[%emt 00:00:05]} 7. dxc5 {[%clk 01:25:51]}
{[%emt 00:01:09]} Na6 {[%clk 01:33:17]} {[%emt 00:00:20]} 8. a3 {[%clk
01:18:08]} {[%emt 00:08:14]} Bxc3+ {[%clk 01:29:53]} {[%emt 00:03:54]} 9. Qxc3
{[%clk 01:18:15]} {[%emt 00:00:23]} Nxc5 {[%clk 01:13:16]} {[%emt 00:17:08]} 10.
Bxf6 {[%clk 01:12:42]} {[%emt 00:06:02]} Qxf6 {[%clk 01:12:43]} {[%emt
00:01:02]} 11. Qxf6 {[%clk 01:12:13]} {[%emt 00:01:00]} gxf6 {[%clk 01:13:12]}
{[%emt 00:00:02]} 12. cxd5 {[%clk 01:12:09]} {[%emt 00:00:34]} exd5 {[%clk
01:13:23]} {[%emt 00:00:20]} 13. e3 {[%clk 01:08:33]} {[%emt 00:04:05]} Be6
{[%clk 01:11:36]} {[%emt 00:02:16]} 14. Nd4 {[%clk 01:04:51]} {[%emt 00:04:12]}
Rac8 {[%clk 01:10:57]} {[%emt 00:01:10]} 15. Be2 {[%clk 01:00:09]} {[%emt
00:05:10]} f5 {[%clk 01:09:59]} {[%emt 00:01:29]} 16. O-O {[%clk 00:57:58]}
{[%emt 00:02:41]} Kg7 {[%clk 01:08:16]} {[%emt 00:02:12]} 17. Rad1 {[%clk
00:44:30]} {[%emt 00:13:58]} Kf6 {[%clk 01:05:40]} {[%emt 00:03:07]} 18. f3
{[%clk 00:20:26]} {[%emt 00:24:34]} a6 {[%clk 00:59:35]} {[%emt 00:06:35]} 19.
Rd2 {[%clk 00:20:22]} {[%emt 00:00:33]} Rc7 {[%clk 00:56:09]} {[%emt 00:03:57]}
20. Rc2 {[%clk 00:14:41]} {[%emt 00:06:11]} Rfc8 {[%clk 00:51:06]} {[%emt
00:05:33]} 21. Rfc1 {[%clk 00:14:00]} {[%emt 00:01:11]} Bd7 {[%clk 00:44:17]}
{[%emt 00:07:20]} 22. Kf2 {[%clk 00:05:22]} {[%emt 00:09:07]} Ke5 {[%clk
00:36:22]} {[%emt 00:08:25]} 23. b4 {[%clk 00:03:46]} {[%emt 00:02:06]} Ne6
{[%clk 00:36:18]} {[%emt 00:00:34]} 24. f4+ {[%clk 00:01:51]} {[%emt 00:02:25]}
Kf6 {[%clk 00:36:38]} {[%emt 00:00:10]} 25. Rxc7 {[%clk 00:01:37]} {[%emt
00:00:44]} Rxc7 {[%clk 00:36:58]} {[%emt 00:00:11]} 26. Rxc7 {[%clk 00:01:55]}
{[%emt 00:00:12]} Nxc7 {[%clk 00:37:26]} {[%emt 00:00:02]} 27. Bd3 {[%clk
00:00:40]} {[%emt 00:01:44]} Ne8 {[%clk 00:35:45]} {[%emt 00:02:12]} 1/2-1/2

[Event "Schack-SM 2022: Mastarklassen"]
[Site "Fyrishov, Idrottsgatan 2, Uppsala, Sweden"]
[Date "2022.07.03"]
[Round "2.2"]
[White "Eriksson, Dan"]
[Black "Lind, Jan-Olov"]
[Result "0-1"]
[TimeControl "90 minutes for 40 moves + 30 minutes for the rest of the game + 30 seconds per move from move one."]
[WhiteFideId "1710095"]
[BlackFideId "1701193"]
[WhiteElo "2246"]
[BlackElo "2173"]

1. e4 {[%clk 01:30:54]} {[%emt 00:00:05]} c5 {[%clk 01:30:42]} {[%emt
00:00:18]} 2. c3 {[%clk 01:30:57]} {[%emt 00:00:27]} d5 {[%clk 01:30:46]}
{[%emt 00:00:26]} 3. exd5 {[%clk 01:31:15]} {[%emt 00:00:13]} Qxd5 {[%clk
01:31:09]} {[%emt 00:00:08]} 4. d4 {[%clk 01:31:37]} {[%emt 00:00:08]} g6
{[%clk 01:31:23]} {[%emt 00:00:15]} 5. Be3 {[%clk 01:27:49]} {[%emt 00:04:18]}
cxd4 {[%clk 01:31:15]} {[%emt 00:00:39]} 6. cxd4 {[%clk 01:15:54]} {[%emt
00:12:25]} Bg7 {[%clk 01:31:18]} {[%emt 00:00:27]} 7. Nc3 {[%clk 01:15:54]}
{[%emt 00:00:30]} Qd8 {[%clk 01:31:05]} {[%emt 00:00:42]} 8. Nf3 {[%clk
01:15:35]} {[%emt 00:00:49]} Nh6 {[%clk 01:30:43]} {[%emt 00:00:52]} 9. Nb5
{[%clk 01:02:46]} {[%emt 00:13:20]} Nf5 {[%clk 01:20:43]} {[%emt 00:10:29]} 10.
Bf4 {[%clk 00:58:51]} {[%emt 00:04:24]} Na6 {[%clk 01:18:30]} {[%emt 00:02:44]}
11. Be2 {[%clk 00:43:16]} {[%emt 00:16:04]} O-O {[%clk 01:16:19]} {[%emt
00:02:41]} 12. O-O {[%clk 00:43:23]} {[%emt 00:00:23]} Bd7 {[%clk 01:13:35]}
{[%emt 00:03:15]} 13. Nc3 {[%clk 00:35:53]} {[%emt 00:08:00]} Nc7 {[%clk
00:54:02]} {[%emt 00:20:02]} 14. Qb3 {[%clk 00:23:27]} {[%emt 00:12:56]} Ne6
{[%clk 00:50:06]} {[%emt 00:04:25]} 15. Be3 {[%clk 00:21:14]} {[%emt 00:02:43]}
Nexd4 {[%clk 00:48:57]} {[%emt 00:01:40]} 16. Bxd4 {[%clk 00:20:13]} {[%emt
00:01:31]} Nxd4 {[%clk 00:49:14]} {[%emt 00:00:13]} 17. Nxd4 {[%clk 00:20:30]}
{[%emt 00:00:14]} Bxd4 {[%clk 00:49:35]} {[%emt 00:00:08]} 18. Qxb7 {[%clk
00:20:04]} {[%emt 00:00:56]} Rb8 {[%clk 00:48:10]} {[%emt 00:01:55]} 19. Qa6
{[%clk 00:18:10]} {[%emt 00:02:24]} Rxb2 {[%clk 00:46:28]} {[%emt 00:02:12]} 20.
Nd5 {[%clk 00:13:06]} {[%emt 00:05:34]} Be6 {[%clk 00:34:40]} {[%emt 00:12:17]}
21. Nf4 {[%clk 00:12:01]} {[%emt 00:01:35]} Rb6 {[%clk 00:32:15]} {[%emt
00:02:55]} 22. Qxa7 {[%clk 00:08:55]} {[%emt 00:03:37]} Bxa1 {[%clk 00:32:17]}
{[%emt 00:00:27]} 23. Rxa1 {[%clk 00:08:14]} {[%emt 00:01:11]} Qb8 {[%clk
00:30:00]} {[%emt 00:02:48]} 24. Qxb8 {[%clk 00:06:22]} {[%emt 00:02:22]} Rfxb8
{[%clk 00:30:23]} {[%emt 00:00:07]} 25. Nxe6 {[%clk 00:04:48]} {[%emt
00:02:05]} Rxe6 {[%clk 00:29:38]} {[%emt 00:01:15]} 26. Bc4 {[%clk 00:05:04]}
{[%emt 00:00:14]} Re4 {[%clk 00:27:49]} {[%emt 00:02:18]} 27. Bb3 {[%clk
00:04:35]} {[%emt 00:00:59]} Re2 {[%clk 00:27:39]} {[%emt 00:00:40]} 28. Rd1
{[%clk 00:04:52]} {[%emt 00:00:14]} Rb2 {[%clk 00:27:44]} {[%emt 00:00:25]} 29.
h4 {[%clk 00:04:01]} {[%emt 00:01:21]} h5 {[%clk 00:27:58]} {[%emt 00:00:16]}
30. g3 {[%clk 00:03:40]} {[%emt 00:00:51]} Kg7 {[%clk 00:28:07]} {[%emt
00:00:21]} 31. Rd7 {[%clk 00:03:43]} {[%emt 00:00:27]} Kf6 {[%clk 00:28:22]}
{[%emt 00:00:13]} 32. Rd3 {[%clk 00:03:55]} {[%emt 00:00:19]} e6 {[%clk
00:28:17]} {[%emt 00:00:36]} 33. Rd7 {[%clk 00:03:30]} {[%emt 00:00:56]} Re8
{[%clk 00:26:54]} {[%emt 00:01:52]} 34. Bc4 {[%clk 00:02:37]} {[%emt 00:01:24]}
Rc8 {[%clk 00:26:39]} {[%emt 00:00:45]} 35. Bb3 {[%clk 00:03:03]} {[%emt
00:00:05]} Rc1+ {[%clk 00:26:43]} {[%emt 00:00:26]} 36. Kg2 {[%clk 00:03:28]}
{[%emt 00:00:05]} Rc5 {[%clk 00:26:12]} {[%emt 00:01:01]} 37. Kg1 {[%clk
00:03:40]} {[%emt 00:00:18]} Rf5 {[%clk 00:26:05]} {[%emt 00:00:37]} 38. f4
{[%clk 00:03:54]} {[%emt 00:00:16]} Rc5 {[%clk 00:26:19]} {[%emt 00:00:16]} 39.
Rd1 {[%clk 00:04:19]} {[%emt 00:00:05]} Rc3 {[%clk 00:26:33]} {[%emt 00:00:17]}
0-1